Cogmind - Beta 9.6 *** ADVENTURER MODE // 2020.05.30 @ 09:49:24 Player: Haraguro Result: Self-destructed Performance ------------- Evolutions (1) 500 Regions Visited (3) 600 Robots Destroyed (18) 90 Value Destroyed (403) 403 Prototype IDs (0) 0 Alien Tech Used (0) 0 Bonus (0) 0 TOTAL SCORE: 1593 Bonus ------- None Cogmind --------- Core Integrity 111/400 Matter 300/300 Energy 265/265 System Corruption 2% Temperature Cool (0) Movement Treading (180) Ox1 Location -9/Materials Parts ------- > --- POWER (1) -------- Reinforced Ion Engine > --- PROPULSION (2) --- Light Treads > --- UTILITY (4) ------ Small Storage Unit Medium Storage Unit > --- WEAPON (2) ------- (None) > --- INVENTORY (10) --- Ion Engine Ion Engine Structural Scanner Small Laser Spread Laser Peak State ------------ > --- POWER ------------ Reinforced Ion Engine > --- PROPULSION ------- Light Treads Light Treads > --- UTILITY ---------- Heat Sink Small Storage Unit Medium Storage Unit Hardened Light Armor Plating > --- WEAPON ----------- Light Assault Rifle Light Assault Rifle > --- INVENTORY -------- Ion Engine Ion Engine Compact Wheel Small Laser Mining Laser Hammer [Rating: 11] Favorites ----------- Power Ion Engine Engine Ion Engine Propulsion Compact Wheel Treads Light Treads Wheel Compact Wheel Flight Unit Flight Unit Utility Small Storage Unit Device Heat Sink Storage Small Storage Unit Protection Hardened Light Armor Plating Weapon Light Assault Rifle Energy Gun Medium Laser Ballistic Gun Light Assault Rifle Special Weapon Mining Laser Impact Weapon Hammer Build | -11 -10 -10 -9 ------- Run | Scr Mat Min Mat Slots Evolved 2 | . . . 2 Power . | . . . . Propulsion . | . . . . Utility 2 | . . . 2 Weapon . | . . . . Parts Attached 27 | 6 1 6 14 Power 4 | 1 . 1 2 Engine 4 | 1 . 1 2 Core . | . . . . Reactor . | . . . . Propulsion 9 | 2 . . 7 Treads 3 | . . . 3 Leg . | . . . . Wheel 3 | 2 . . 1 Hover . | . . . . Flight 3 | . . . 3 Utility 4 | 1 1 . 2 Device 1 | . . . 1 Storage 2 | 1 1 . . Processor . | . . . . Hackware . | . . . . Protection 1 | . . . 1 Artifact . | . . . . Weapon 10 | 2 . 5 3 Energy Gun 1 | 1 . . . Energy Cannon . | . . . . Ballistic Gun 4 | 1 . 2 1 Ballistic Cannon . | . . . . Launcher . | . . . . Special Weapon 4 | . . 3 1 Impact Weapon 1 | . . . 1 Slashing Weapon . | . . . . Piercing Weapon . | . . . . Special Melee Weapon . | . . . . Unidentified Prototypes . | . . . . Parts Lost 18 | . . 5 13 Power 2 | . . . 2 Propulsion 5 | . . 1 4 Utility 2 | . . . 2 Weapon 9 | . . 4 5 Highest Loss Streak 6 | . . 5 6 Average Slot Usage (%) 82 | . 97 94 73 Engine 11 | . 14 14 9 Treads 5 | . . . 10 Wheel 12 | . 28 24 2 Flight 1 | . . . 2 Device 3 | . . . 5 Storage 24 | . 25 28 22 Protection 2 | . . . 4 Energy Gun 4 | . 14 8 . Ballistic Gun 13 | . 14 14 12 Special Weapon 1 | . . 4 . Impact Weapon 1 | . . . 2 Naked Turns . | . . . . Heaviest Build 30 | 12 20 20 30 Greatest Support 40 | 32 32 32 40 Greatest Overweight (x) 8 | . . 1 8 Average Overweight (x) . | . . . . Largest Inventory Capacity 10 | 6 10 10 10 Average Capacity 9 | 4 9 10 10 Most Carried 10 | 2 6 10 10 Average Carried 6 | . 2 8 6 Final Capacity 10 | 6 10 10 10 Final Carried 7 | 2 6 7 5 Class Distribution -------------------- 84% | Mutant 15% | Scavenger-Mutant Dominant Class ---------------- Mutant | -10/Materials Mutant | -10/Mines Mutant | -9/Materials Resources | -11 -10 -10 -9 ----------- Run | Scr Mat Min Mat Matter Collected 512 | 100 47 108 257 Remotely . | . . . . Salvage Created 502 | . 47 108 347 Parts 41 | . 4 10 27 Haulers Intercepted . | . . . . Recyclers Shooed . | . . . . Parts Field Recycled . | . . . . Retrieved Matter . | . . . . Parts Self-Destructed . | . . . . Prevented . | . . . . Kills | -11 -10 -10 -9 ------- Run | Scr Mat Min Mat Combat Hostiles Destroyed 17 | . 3 7 7 Melee 1 | . . . 1 Guns 16 | . 3 7 6 Classes Destroyed 5 | . 1 1 3 Builder 1 | . . . 1 Swarmer 9 | . 3 6 . Grunt 4 | . . 1 3 Brawler 2 | . . . 2 Sentry 2 | . . . 2 Best Kill Streak 4 | . 3 4 3 Combat Bots Only 4 | . 3 4 3 Max Kills in Single Turn 2 | . 1 2 1 Gunslinging 1 | . . 1 . Exploded . | . . . . Melee 1 | . . . 1 Uniques/NPCs Destroyed . | . . . . Combat | -11 -10 -10 -9 -------- Run | Scr Mat Min Mat Damage Taken 2062 | . 38 539 1485 Core 394 | . . 105 289 Absorbed by Shields . | . . . . Core Remaining (%) 79 | 100 . 58 . Volleys Fired 78 | . 3 26 49 Largest 2 | . 2 2 2 Hottest 200 | . 70 200 40 Shots Fired 130 | . 6 44 80 Gun 122 | . 6 36 80 Cannon . | . . . . Launcher . | . . . . Special 8 | . . 8 . Kinetic 109 | . 3 26 80 Thermal 21 | . 3 18 . Explosive . | . . . . Electromagnetic . | . . . . Robot Hit Streak 27 | . 4 13 27 Robot Miss Streak 3 | . . 3 2 Penetration Max . | . . . . Secondary Targets 5 | . 1 3 1 Max Gunslinging Chain 1 | . 1 1 1 Shots Hit Robots 136 | . 4 33 99 Core Hits 37 | . 3 12 22 Critical Hits 1 | . . 1 . Critical Kills 1 | . . 1 . Critical Parts Destroyed . | . . . . Melee Attacks 28 | . . . 28 Impact 28 | . . . 28 Slashing . | . . . . Piercing . | . . . . Sneak Attacks . | . . . . Combat Hostiles . | . . . . Follow-up Attacks . | . . . . Damage Inflicted 1343 | . 44 346 953 Guns 837 | . 44 226 567 Cannons . | . . . . Explosions . | . . . . Melee 386 | . . . 386 Ramming . | . . . . Kinetic 712 | . 6 139 567 Thermal 245 | . 38 207 . Explosive . | . . . . Electromagnetic . | . . . . Impact 386 | . . . 386 Slashing . | . . . . Piercing . | . . . . Highest Corruption 2 | . . . 2 Average Corruption 2 | . . . 2 Corruption Purged . | . . . . Effects 7 | . . . 7 Message Errors 1 | . . . 1 Energy Discharges 2 | . . . 2 Data Loss (minor) 2 | . . . 2 Targeting Errors 2 | . . . 2 Overload Shots . | . . . . Overflow Damage 13 | . . 4 9 Projectiles 4 | . . 4 . Explosions . | . . . . Melee 9 | . . . 9 Knockbacks . | . . . . Impact . | . . . . Kinetic . | . . . . Secondary . | . . . . Self-Inflicted Damage . | . . . . Shots . | . . . . Rammed 1 | . . 1 . Targets Rammed 1 | . . 1 . Kicked . | . . . . Crushed . | . . . . Highest Temperature 269 | . 50 269 15 Average Temperature 78 | . 26 104 5 Received Heat Transfer 897 | . . 273 624 Effects 4 | . . 4 . Interference 4 | . . 4 . Siege Activations . | . . . . Robots Corrupted . | . . . . Combat Hostiles . | . . . . Parts Fried . | . . . . Impact Corruptions 1 | . . . 1 Robots Melted . | . . . . Combat Hostiles . | . . . . Parts Melted . | . . . . Heat Transferred 620 | . 111 509 . Parts Sabotaged . | . . . . Parts Stolen . | . . . . Parts Stripped . | . . . . Power Chain Reactions . | . . . . Missiles Intercepted . | . . . . Alert | -11 -10 -10 -9 ------- Run | Scr Mat Min Mat Peak Influence 178 | . 70 178 175 Average Influence 92 | . 39 127 101 Maximum Alert Level . | . . . . Low Security (%) 100 | 100 100 100 100 Level 1 . | . . . . Level 2 . | . . . . Level 3 . | . . . . Level 4 . | . . . . Level 5 . | . . . . High Security . | . . . . Max Security . | . . . . Squads Dispatched 1 | . . . 1 Investigation . | . . . . Extermination . | . . . . Reinforcement 1 | . . . 1 Assault . | . . . . Garrison . | . . . . Intercept . | . . . . Construction Impeded . | . . . . Haulers Reinforced . | . . . . Stealth | -11 -10 -10 -9 --------- Run | Scr Mat Min Mat Distress Signals 1 | . . . 1 Communications Jammed . | . . . . Distress Signals . | . . . . Times Spotted 27 | . 3 8 16 Peak Tracking Total 7 | . 3 3 7 Tactical Retreats 1 | . . . 1 Traps | -11 -10 -10 -9 ------- Run | Scr Mat Min Mat Traps Triggered . | . . . . Indirectly . | . . . . Trap Hack Attempts . | . . . . Triggered . | . . . . Disarmed . | . . . . Reprogrammed . | . . . . Reused . | . . . . Traps Extracted . | . . . . Installed . | . . . . Triggered . | . . . . Machines | -11 -10 -10 -9 ---------- Run | Scr Mat Min Mat Machines Disabled 1 | . . 1 . Max in Single Turn 1 | . . 1 . Machines Sabotaged . | . . . . Garrisons Compromised . | . . . . Overloaded Fab Kills . | . . . . Fab Network Shutdowns . | . . . . Hacking | -11 -10 -10 -9 --------- Run | Scr Mat Min Mat Machines Accessed 2 | . 1 . 1 Terminals 2 | . 1 . 1 Fabricators . | . . . . Repair Stations . | . . . . Recycling Units . | . . . . Scanalyzers . | . . . . Garrison Access . | . . . . Total Hacks 5 | . 2 . 3 Successful 3 | . 1 . 2 Failed 2 | . 1 . 1 Catastrophic . | . . . . Database Lockouts . | . . . . Manual . | . . . . Terminals 5 | . 2 . 3 Fabricators . | . . . . Repair Stations . | . . . . Recycling Units . | . . . . Scanalyzers . | . . . . Garrison Access . | . . . . Terminal Hacks 3 | . 1 . 2 Record 2 | . . . 2 Maintenance Status 1 | . 1 . . Fabricator Hacks . | . . . . Repair Station Hacks . | . . . . Recycling Unit Hacks . | . . . . Scanalyzer . | . . . . Garrison Access Hacks . | . . . . Unauthorized Hacks . | . . . . Terminals . | . . . . Fabricators . | . . . . Repair Stations . | . . . . Recycling Units . | . . . . Scanalyzers . | . . . . Garrison Access . | . . . . Data Cores Recovered . | . . . . Used . | . . . . Hacking Detections 2 | . 1 . 1 Full Trace Events . | . . . . Feedback Events . | . . . . Feedback Blocked . | . . . . Robot Schematics Acquired . | . . . . Robots Built . | . . . . Matter . | . . . . Time . | . . . . Total Robot Build Rating . | . . . . Part Schematics Acquired . | . . . . Parts Built . | . . . . Matter . | . . . . Time . | . . . . Total Part Build Rating . | . . . . Parts Repaired . | . . . . Time . | . . . . Parts Recycled . | . . . . Recycled Matter . | . . . . Retrieved Matter . | . . . . Retrieved Components . | . . . . Parts Scanalyzed . | . . . . Part Schematics Acquired . | . . . . Parts Damaged . | . . . . Bothacking | -11 -10 -10 -9 ------------ Run | Scr Mat Min Mat Used RIF Installer . | . . . . Robots Hacked . | . . . . Non-combat . | . . . . Combat . | . . . . Robot Hacks Applied . | . . . . Relay Couplers Released . | . . . . Robots Rewired . | . . . . Allies Hacked . | . . . . Hacks Repelled . | . . . . Allies | -11 -10 -10 -9 -------- Run | Scr Mat Min Mat Total Allies . | . . . . Largest Group . | . . . . Highest-Rated Group . | . . . . Highest-Rated Ally . | . . . . Total Orders . | . . . . Ally Attacks . | . . . . Total Damage . | . . . . Kills . | . . . . Allies Corrupted . | . . . . Allies Melted . | . . . . Intel | -11 -10 -10 -9 ------- Run | Scr Mat Min Mat Robot Analysis Total . | . . . . Derelict Logs Recovered . | . . . . Drone Launches . | . . . . Drone Recoveries . | . . . . Exploration | -11 -10 -10 -9 ------------- Run | Scr Mat Min Mat Turns Passed 760 | 48 106 197 409 Spaces Moved 368 | 39 92 101 136 Core 4 | 2 . . 2 Treads 66 | . . . 66 Legs . | . . . . Wheels 296 | 37 92 101 66 Hover . | . . . . Flight 2 | . . . 2 Fastest Speed 50 | 50 100 100 110 Average Speed 115 | 97 100 101 142 Slowest Speed 450 | 100 100 110 450 Overloaded Moves . | . . . . Propulsion Burnouts . | . . . . Robots Hopped . | . . . . Cave-ins Triggered . | . . . . Exploration Rate (%) 14 | 4 20 24 9 Regions Visited 3 Branch Regions 1 Pre-discovered Areas . | . . . . Known Exits Taken . | . . . . Unknown Exits Taken 3 | 1 1 1 . Scrap Searched . | . . . . Spaces Dug . | . . . . Terrain Destroyed 1 | . . 1 . Melee . | . . . . Projectile 1 | . . 1 . AOE . | . . . . Actions | -11 -10 -10 -9 --------- Run | Scr Mat Min Mat Total 531 | 46 100 139 246 Wait 6 | . . 1 5 Move 365 | 38 91 100 136 Hop . | . . . . Pick Up 23 | 2 5 5 11 Fast Attach 7 | 6 . . 1 Attach 17 | . 1 4 12 Detach . | . . . . Swap 3 | . . 2 1 Drop 3 | . . . 3 Fire 78 | . 3 26 49 Melee 28 | . . . 28 Ram 1 | . . 1 . Kick . | . . . . Crush . | . . . . Escape Stasis . | . . . . Rewire . | . . . . Trap . | . . . . Miscellaneous . | . . . . Route ------- -11/Scrapyard -10/Materials -10/Mines -9/Materials History --------- Turn | Location | Event 30 | -11/Scrapyard | Discovered new exit (range 15) 49 | -11/Scrapyard | Entered Materials 134 | -10/Materials | Discovered new exit (range 7) 155 | -10/Materials | Entered Mines 250 | -10/Mines | Received a Rocket Launcher from a helpful Derelict 321 | -10/Mines | Build established: Mutant 340 | -10/Mines | Discovered new exit (range 9) 352 | -10/Mines | Entered Materials 352 | -9/Materials | Evolved 2 slots: Utility x2 354 | -9/Materials | Lost 5 parts (1n4w) 501 | -9/Materials | Lost 4 parts (2p1n1w) 675 | -9/Materials | Core integrity fell below 50% 702 | -9/Materials | Lost 6 parts (3n3w) 761 | -9/Materials | Self-destructed Last Messages --------------- 00671_ Mining Laser destroyed. 00694_ System corrupted: Component data lost. 00707_ Hrd. Light Armor Plating destroyed. 00715_ Y-45 Defender destroyed. 00718_ K-01 Serf collects debris. 00720_ ALERT: Hostiles spotted, dispatching reinforcements to Terminal M009. 00721_ K-01 Serf collects debris. 00722_ System corrupted: Energy discharge (-98). 00724_ Heat Sink destroyed. 00726_ Acquired Lgt. Treads. 00726_ K-01 Serf collects debris. 00737_ Acquired 10 matter. 00739_ Destroyed Sml. Laser. 00739_ G-34 Mercenary system corrupted by crushing effect. 00739_ K-01 Serf collects debris. 00746_ K-01 Serf destroyed. 00748_ Hammer destroyed. 00757_ T-07 Excavator destroyed. [Achievement: Back For More] Map ----- +----------------------------------------------------+ | ?????????????????????????????????????????????????? | | ?????????????????????????????????????????????????? | | ?????????????????????????????????????????????????? | | ?????????????????????????????????????????????????? | | ?????????????????????????????????????????????????? | | ?????????????????????????????????????????????????? | | ?????????????????????????????????????????????????? | | ?????????????????????????????????????????????????? | | ?????????????????????????????????????????????????? | | ?????????????????????????????????????????????????? | | ????????????????????????? ?????????????????????? | | ????????????????????????? #????????????????????? | | ????????????????????????? #????????????????????? | | ????????????????????????? #????????????????????? | | ????????????????????????? #????????????????????? | | ????????????????????????? #????????????????????? | | ????????????????????????? #????????????????????? | | ????????????????????????# #????????????????????? | | ???????????????????????## ##???????????????????? | | ???????????????????????# #???????????????????? | | ???????????????????????# #???????????????????? | | ???????????????????????# = #???????????????????? | | ????????###########????? =%! #???????????????????? | | ????????# """"""" #####? [! #???????????????????? | | ????????# """"""" # #?# #????????????????????? | | ????????# """"""" # #?#@ #????????????????????? | | ????????# """"""" # #?# #????????????????????? | | ????????# """"""" # #?# #????????????????????? | | ????????# # #?# #????????????????????? | | ????????# = = # #?# #???????#####????????? | | ????????# = =# ###sss##### ????????? | | ????????#######+####+### %s r= ?????????? | | ?????????????# * %%!%* ######??????????????? | | ?????????????# / =!#???????????????????? | | ?????????????# #???????????????????? | | ?????????????# ####### #???????????????????? | | ?????????????# #?????## gg##???????????????????? | | ?????????????# #??????# #????????????????????? | | ?????????????# #??????# = #????????????????????? | | ??????######## #??????# % #????????????????????? | | ??????# # ######## ????????????????????? | | ??????# # # # ???????????????????? | | ??????# "S + + # ??????????????????? | | ??????# """ # # "" #######+?????????????????? | | ??????# "" # # "T #????????????????????????? | | ??????# # # "" #????????????????????????? | | ??????############ #????????????????????????? | | ?????????????????########????????????????????????? | | ?????????????????????????????????????????????????? | | ?????????????????????????????????????????????????? | +----------------------------------------------------+ Best States ------------- Heat Dissipation 38 Energy Generation 12 Energy Capacity 265 Matter Stores 300 Matter Capacity 300 Sight Range 16 Terrain Scan Density 10 Armor Coverage 150 Resistance: KI 20 Resistance: TH 20 Resistance: EX 20 Resistance: EM 20 Resistance: I 20 Resistance: S 20 Resistance: P 20 Evasion (%) 40 Recoil Reduction 2 Offensive Hacking 10 Item Schematics ----------------- None Robot Schematics ------------------ None Fabricated ------------ Nothing Alien Tech Used ----------------- None Achievements -------------- Back For More Challenges ------------ None Game ------ Seed WeightBarrageActivator Manual? 0 Play Time 00:09:05 Cumulative 95.3 hours Start 2020.05.30 @ 09:41:19 End 2020.05.30 @ 09:49:24 Sessions 1 Manual Loads 0 Difficulty Adventurer Special Mode None Game No. 50 Rogue 25 Adventurer 25 Explorer 0 Win Type - Total 0 Types 0/0/0/0/0/0/0 Lore% 16 Gallery% 37 Achievement% 27 Wizard Run 0 Options --------- ASCII 0 Keyboard 0 Movement Mouse Keybinds 0 Fullscreen 2 Font 18/X11 Map View 76x50 Tactical HUD 1 Map Filters NONE Filters NONE Steam 1 RUN: fd81cb88-4ff6-42cb-9f9e-63ed52fd9bc2